[Event "Titled Tuesday Blitz February 28 Late 2023"]
[White "Girsh, Daniel"]
[Black "Tsukerman, Julia"]
[WhiteFideId "30949190"]
[BlackFideId "2621649"]
[WhiteElo "2075"]
[BlackElo "1667"]
[Result "1-0"]
[Round "02"]
[TimeControl "180+2"]
[Date "2023.02.28"]
[WhiteClock "0:01:34"]
[BlackClock "0:00:17"]

1. d4 {[%clk 0:02:54]}  d5 {[%clk 0:02:58]} 2. Bf4 {[%clk 0:02:54]}  e6 {[%clk 0:02:54]} 3. e3 {[%clk 0:02:55]}  Nf6 {[%clk 0:02:53]} 4. Nf3 {[%clk 0:02:54]}  c5 {[%clk 0:02:50]} 5. c3 {[%clk 0:02:54]}  Nc6 {[%clk 0:02:46]} 6. Nbd2 {[%clk 0:02:54]}  c4 {[%clk 0:02:39]} 7. e4 {[%clk 0:02:51]}  Nxe4 {[%clk 0:02:31]} 8. Nxe4 {[%clk 0:02:50]}  dxe4 {[%clk 0:02:28]} 9. Ng5 {[%clk 0:02:49]}  Qd5 {[%clk 0:02:17]} 10. Qe2 {[%clk 0:02:28]}  f5 {[%clk 0:02:02]} 11. Qxc4 {[%clk 0:02:26]}  h6 {[%clk 0:01:47]} 12. Nh3 {[%clk 0:02:22]}  g5 {[%clk 0:01:39]} 13. Bd2 {[%clk 0:02:22]}  Qxc4 {[%clk 0:01:31]} 14. Bxc4 {[%clk 0:02:23]}  Bd6 {[%clk 0:01:28]} 15. O-O {[%clk 0:02:21]}  Ne7 {[%clk 0:01:20]} 16. f4 {[%clk 0:02:21]}  g4 {[%clk 0:01:16]} 17. Nf2 {[%clk 0:02:20]}  Ng6 {[%clk 0:01:12]} 18. Nd1 {[%clk 0:02:20]}  Ke7 {[%clk 0:01:08]} 19. a3 {[%clk 0:02:14]}  Bd7 {[%clk 0:01:07]} 20. a4 {[%clk 0:02:12]}  h5 {[%clk 0:01:07]} 21. b4 {[%clk 0:02:06]}  Rac8 {[%clk 0:01:06]} 22. Bb3 {[%clk 0:02:06]}  h4 {[%clk 0:01:01]} 23. c4 {[%clk 0:02:04]}  b6 {[%clk 0:00:56]} 24. c5 {[%clk 0:02:04]}  bxc5 {[%clk 0:00:55]} 25. dxc5 {[%clk 0:01:49]}  Bc7 {[%clk 0:00:52]} 26. Nc3 {[%clk 0:01:48]}  Bb8 {[%clk 0:00:36]} 27. Be3 {[%clk 0:01:47]}  a6 {[%clk 0:00:28]} 28. b5 {[%clk 0:01:45]}  axb5 {[%clk 0:00:23]} 29. axb5 {[%clk 0:01:44]}  e5 {[%clk 0:00:20]} 30. Nd5+ {[%clk 0:01:38]}  Kd8 {[%clk 0:00:19]} 31. c6 {[%clk 0:01:38]}  Be6 {[%clk 0:00:18]} 32. fxe5 {[%clk 0:01:38]}  Bxe5 {[%clk 0:00:18]} 33. Rad1 {[%clk 0:01:36]}  Bxd5 {[%clk 0:00:16]} 34. Rxd5+ {[%clk 0:01:35]}  Ke8 {[%clk 0:00:17]} 35. Rxf5 {[%clk 0:01:34]} 1-0


[Site "https://www.chess.com"]

[Event "Titled Tuesday Blitz February 28 Late 2023"]
[White "Golubev, Mikhail"]
[Black "Comas Fabrego, Lluis"]
[WhiteFideId "14100983"]
[BlackFideId "2200325"]
[WhiteElo "2374"]
[BlackElo "2523"]
[Result "1-0"]
[Round "02"]
[TimeControl "180+2"]
[Date "2023.02.28"]
[WhiteClock "0:01:05"]
[BlackClock "0:00:19"]

1. e4 {[%clk 0:03:00]}  c5 {[%clk 0:02:59]} 2. Nf3 {[%clk 0:03:00]}  d6 {[%clk 0:02:59]} 3. d4 {[%clk 0:03:01]}  cxd4 {[%clk 0:02:59]} 4. Nxd4 {[%clk 0:03:02]}  Nf6 {[%clk 0:02:59]} 5. Nc3 {[%clk 0:03:02]}  g6 {[%clk 0:02:59]} 6. Be3 {[%clk 0:03:01]}  Bg7 {[%clk 0:02:59]} 7. f3 {[%clk 0:03:02]}  O-O {[%clk 0:02:58]} 8. Qd2 {[%clk 0:03:02]}  Nc6 {[%clk 0:02:58]} 9. Bc4 {[%clk 0:03:02]}  Bd7 {[%clk 0:02:57]} 10. g4 {[%clk 0:02:50]}  Ne5 {[%clk 0:02:50]} 11. Bb3 {[%clk 0:02:43]}  Qa5 {[%clk 0:02:49]} 12. O-O-O {[%clk 0:02:37]}  Rfc8 {[%clk 0:02:48]} 13. h4 {[%clk 0:02:36]}  Rc4 {[%clk 0:02:19]} 14. g5 {[%clk 0:02:32]}  Nh5 {[%clk 0:01:50]} 15. f4 {[%clk 0:02:31]}  Nf3 {[%clk 0:01:06]} 16. Nxf3 {[%clk 0:02:21]}  Rxc3 {[%clk 0:01:06]} 17. e5 {[%clk 0:01:27]}  Bg4 {[%clk 0:00:42]} 18. Rhf1 {[%clk 0:01:23]}  dxe5 {[%clk 0:00:30]} 19. fxe5 {[%clk 0:01:11]}  e6 {[%clk 0:00:19]} 20. Qxc3 {[%clk 0:01:05]}  Qxc3 {[%clk 0:00:19]} 21. bxc3 {[%clk 0:01:06]}  Bxf3 {[%clk 0:00:18]} 22. Rxf3 {[%clk 0:01:05]}  Bxe5 {[%clk 0:00:19]} 23. Rd7 {[%clk 0:01:05]} 1-0


[Site "https://www.chess.com"]

[Event "Titled Tuesday Blitz February 28 Late 2023"]
[White "The_Sherman_Variation"]
[Black "Michalski, Olaf"]
[BlackFideId "1106740"]
[WhiteElo "2451"]
[BlackElo "2173"]
[Result "1/2-1/2"]
[Round "02"]
[TimeControl "180+2"]
[Date "2023.02.28"]
[WhiteClock "0:00:25"]
[BlackClock "0:00:08"]

1. Nf3 {[%clk 0:03:00]}  d6 {[%clk 0:02:56]} 2. d4 {[%clk 0:02:59]}  Bg4 {[%clk 0:02:56]} 3. e4 {[%clk 0:02:57]}  Nf6 {[%clk 0:02:53]} 4. Nc3 {[%clk 0:02:57]}  Nc6 {[%clk 0:02:52]} 5. Be2 {[%clk 0:02:56]}  e6 {[%clk 0:02:53]} 6. h3 {[%clk 0:02:56]}  Bh5 {[%clk 0:02:52]} 7. Bg5 {[%clk 0:02:54]}  Be7 {[%clk 0:02:50]} 8. d5 {[%clk 0:02:29]}  exd5 {[%clk 0:02:35]} 9. exd5 {[%clk 0:02:28]}  Bxf3 {[%clk 0:02:32]} 10. Bxf3 {[%clk 0:02:22]}  Nxd5 {[%clk 0:02:29]} 11. Nxd5 {[%clk 0:02:09]}  Bxg5 {[%clk 0:02:27]} 12. Qe2+ {[%clk 0:02:07]}  Be7 {[%clk 0:02:03]} 13. O-O {[%clk 0:02:04]}  O-O {[%clk 0:01:50]} 14. Nxe7+ {[%clk 0:02:02]}  Qxe7 {[%clk 0:01:46]} 15. Qb5 {[%clk 0:01:43]}  Qd7 {[%clk 0:01:29]} 16. Qxb7 {[%clk 0:01:37]}  Ne5 {[%clk 0:01:17]} 17. b3 {[%clk 0:01:28]}  Nxf3+ {[%clk 0:01:07]} 18. Qxf3 {[%clk 0:01:29]}  a5 {[%clk 0:01:07]} 19. a4 {[%clk 0:01:27]}  Rfe8 {[%clk 0:00:54]} 20. Rad1 {[%clk 0:01:25]}  h6 {[%clk 0:00:54]} 21. Rd3 {[%clk 0:01:21]}  Rab8 {[%clk 0:00:42]} 22. Rfd1 {[%clk 0:01:13]}  Re5 {[%clk 0:00:40]} 23. Rd5 {[%clk 0:01:10]}  Rbe8 {[%clk 0:00:31]} 24. Rxe5 {[%clk 0:00:46]}  Rxe5 {[%clk 0:00:30]} 25. Rd5 {[%clk 0:00:46]}  Re1+ {[%clk 0:00:27]} 26. Kh2 {[%clk 0:00:46]}  c5 {[%clk 0:00:27]} 27. Qc3 {[%clk 0:00:32]}  Qe6 {[%clk 0:00:22]} 28. Rd3 {[%clk 0:00:22]}  Qe5+ {[%clk 0:00:21]} 29. Qxe5 {[%clk 0:00:21]}  dxe5 {[%clk 0:00:21]} 30. Re3 {[%clk 0:00:20]}  Rc1 {[%clk 0:00:20]} 31. c3 {[%clk 0:00:19]}  f6 {[%clk 0:00:20]} 32. b4 {[%clk 0:00:18]}  cxb4 {[%clk 0:00:19]} 33. cxb4 {[%clk 0:00:19]}  axb4 {[%clk 0:00:20]} 34. Rb3 {[%clk 0:00:20]}  Rc4 {[%clk 0:00:18]} 35. a5 {[%clk 0:00:20]}  Rc5 {[%clk 0:00:17]} 36. Rxb4 {[%clk 0:00:21]}  Rxa5 {[%clk 0:00:17]} 37. f3 {[%clk 0:00:21]}  Kf7 {[%clk 0:00:16]} 38. Kg3 {[%clk 0:00:22]}  Kg6 {[%clk 0:00:16]} 39. h4 {[%clk 0:00:22]}  Kf5 {[%clk 0:00:15]} 40. Rc4 {[%clk 0:00:23]}  g6 {[%clk 0:00:14]} 41. Rb4 {[%clk 0:00:23]}  h5 {[%clk 0:00:15]} 42. Rc4 {[%clk 0:00:24]}  Rd5 {[%clk 0:00:15]} 43. Rb4 {[%clk 0:00:23]}  Rd4 {[%clk 0:00:14]} 44. Rb8 {[%clk 0:00:22]}  Ra4 {[%clk 0:00:13]} 45. Rb5 {[%clk 0:00:21]}  Ra3 {[%clk 0:00:12]} 46. Rb4 {[%clk 0:00:20]}  Rd3 {[%clk 0:00:11]} 47. Rc4 {[%clk 0:00:20]}  g5 {[%clk 0:00:10]} 48. hxg5 {[%clk 0:00:20]}  fxg5 {[%clk 0:00:10]} 49. Ra4 {[%clk 0:00:21]}  Rd4 {[%clk 0:00:09]} 50. Ra8 {[%clk 0:00:21]}  Rd2 {[%clk 0:00:07]} 51. Rf8+ {[%clk 0:00:22]}  Kg6 {[%clk 0:00:07]} 52. Rg8+ {[%clk 0:00:22]}  Kf6 {[%clk 0:00:07]} 53. Rf8+ {[%clk 0:00:23]}  Kg6 {[%clk 0:00:07]} 54. Re8 {[%clk 0:00:23]}  Kf6 {[%clk 0:00:07]} 55. Rh8 {[%clk 0:00:23]}  h4+ {[%clk 0:00:07]} 56. Kh3 {[%clk 0:00:22]}  Kf5 {[%clk 0:00:07]} 57. Rf8+ {[%clk 0:00:23]}  Ke6 {[%clk 0:00:07]} 58. Rg8 {[%clk 0:00:23]}  Kf5 {[%clk 0:00:07]} 59. Rf8+ {[%clk 0:00:23]}  Kg6 {[%clk 0:00:07]} 60. Re8 {[%clk 0:00:24]}  Kf6 {[%clk 0:00:07]} 61. Rf8+ {[%clk 0:00:24]}  Kg6 {[%clk 0:00:07]} 62. Re8 {[%clk 0:00:25]}  Kf6 {[%clk 0:00:07]} 63. Rf8+ {[%clk 0:00:25]}  Kg6 {[%clk 0:00:08]} 1/2-1/2


[Site "https://www.chess.com"]

[Event "Titled Tuesday Blitz February 28 Late 2023"]
[White "Wu, Sibo"]
[Black "Gurevich, Ilya"]
[WhiteFideId "8606048"]
[BlackFideId "2000628"]
[WhiteElo "2450"]
[BlackElo "2124"]
[Result "1/2-1/2"]
[Round "02"]
[TimeControl "180+2"]
[Date "2023.02.28"]
[WhiteClock "0:00:30"]
[BlackClock "0:00:02"]

1. d4 {[%clk 0:03:00]}  Nf6 {[%clk 0:02:59]} 2. Bf4 {[%clk 0:03:01]}  g6 {[%clk 0:03:00]} 3. Nc3 {[%clk 0:03:00]}  d5 {[%clk 0:03:00]} 4. e3 {[%clk 0:03:00]}  Bg7 {[%clk 0:03:01]} 5. h4 {[%clk 0:03:01]}  h5 {[%clk 0:03:01]} 6. Nf3 {[%clk 0:03:00]}  O-O {[%clk 0:03:01]} 7. Ne5 {[%clk 0:03:00]}  c5 {[%clk 0:02:57]} 8. Be2 {[%clk 0:03:00]}  cxd4 {[%clk 0:02:57]} 9. exd4 {[%clk 0:03:00]}  Nc6 {[%clk 0:02:58]} 10. Qd2 {[%clk 0:02:54]}  Ne4 {[%clk 0:02:50]} 11. Nxe4 {[%clk 0:02:30]}  dxe4 {[%clk 0:02:51]} 12. O-O-O {[%clk 0:02:26]}  Nxe5 {[%clk 0:02:05]} 13. dxe5 {[%clk 0:02:18]}  Qb6 {[%clk 0:01:57]} 14. g4 {[%clk 0:02:01]}  Bxg4 {[%clk 0:01:24]} 15. Bxg4 {[%clk 0:02:01]}  hxg4 {[%clk 0:01:25]} 16. h5 {[%clk 0:02:01]}  Rfd8 {[%clk 0:01:19]} 17. Qe2 {[%clk 0:01:57]}  Rxd1+ {[%clk 0:01:17]} 18. Qxd1 {[%clk 0:01:50]}  Qxf2 {[%clk 0:01:15]} 19. Qxg4 {[%clk 0:01:45]}  Qf3 {[%clk 0:00:57]} 20. Qxf3 {[%clk 0:01:43]}  exf3 {[%clk 0:00:57]} 21. h6 {[%clk 0:01:43]}  Bh8 {[%clk 0:00:33]} 22. Rf1 {[%clk 0:01:43]}  Rd8 {[%clk 0:00:26]} 23. Rxf3 {[%clk 0:01:42]}  Rd5 {[%clk 0:00:26]} 24. Re3 {[%clk 0:01:38]}  e6 {[%clk 0:00:17]} 25. b3 {[%clk 0:01:36]}  Kh7 {[%clk 0:00:11]} 26. c3 {[%clk 0:01:27]}  g5 {[%clk 0:00:10]} 27. Bxg5 {[%clk 0:01:20]}  Rxe5 {[%clk 0:00:10]} 28. Rxe5 {[%clk 0:01:02]}  Bxe5 {[%clk 0:00:11]} 29. Kd2 {[%clk 0:01:02]}  Bd6 {[%clk 0:00:09]} 30. Ke3 {[%clk 0:00:59]}  Bf8 {[%clk 0:00:09]} 31. Kd4 {[%clk 0:00:50]}  Bxh6 {[%clk 0:00:08]} 32. Bh4 {[%clk 0:00:48]}  Bg7+ {[%clk 0:00:07]} 33. Kc5 {[%clk 0:00:48]}  Bxc3 {[%clk 0:00:06]} 34. Bf2 {[%clk 0:00:44]}  Kg6 {[%clk 0:00:05]} 35. Kc4 {[%clk 0:00:45]}  Be5 {[%clk 0:00:05]} 36. Bxa7 {[%clk 0:00:45]}  f5 {[%clk 0:00:04]} 37. a4 {[%clk 0:00:45]}  f4 {[%clk 0:00:04]} 38. a5 {[%clk 0:00:45]}  Kf5 {[%clk 0:00:04]} 39. b4 {[%clk 0:00:43]}  Ke4 {[%clk 0:00:04]} 40. b5 {[%clk 0:00:43]}  Bc7 {[%clk 0:00:02]} 41. b6 {[%clk 0:00:38]}  Bd8 {[%clk 0:00:01]} 42. Kc5 {[%clk 0:00:35]}  f3 {[%clk 0:00:01]} 43. a6 {[%clk 0:00:34]}  f2 {[%clk 0:00:02]} 44. axb7 {[%clk 0:00:33]}  f1=Q {[%clk 0:00:03]} 45. b8=Q {[%clk 0:00:33]}  Qc1+ {[%clk 0:00:03]} 46. Kd6 {[%clk 0:00:31]}  Qf4+ {[%clk 0:00:02]} 47. Kc6 {[%clk 0:00:30]}  Qxb8 {[%clk 0:00:01]} 48. Bxb8 {[%clk 0:00:30]}  Bxb6 {[%clk 0:00:02]} 49. Kxb6 {[%clk 0:00:30]}  Kd5 {[%clk 0:00:01]} 50. Kb5 {[%clk 0:00:31]}  e5 {[%clk 0:00:02]} 51. Bxe5 {[%clk 0:00:30]} 1/2-1/2


[Site "https://www.chess.com"]

[Event "Titled Tuesday Blitz February 28 Late 2023"]
[White "Souza, Gustavo Horokoski De"]
[Black "Mortazavi, Ali"]
[WhiteFideId "2146584"]
[BlackFideId "401323"]
[WhiteElo "1859"]
[BlackElo "2339"]
[Result "0-1"]
[Round "02"]
[TimeControl "180+2"]
[Date "2023.02.28"]
[WhiteClock "0:00:26"]
[BlackClock "0:00:43"]

1. d4 {[%clk 0:02:45]}  Nf6 {[%clk 0:02:59]} 2. c4 {[%clk 0:02:42]}  g6 {[%clk 0:02:59]} 3. Nc3 {[%clk 0:02:42]}  Bg7 {[%clk 0:03:00]} 4. e4 {[%clk 0:02:39]}  O-O {[%clk 0:03:01]} 5. Be2 {[%clk 0:02:31]}  d6 {[%clk 0:03:02]} 6. Bg5 {[%clk 0:02:27]}  Nbd7 {[%clk 0:03:00]} 7. f4 {[%clk 0:02:25]}  c5 {[%clk 0:02:51]} 8. d5 {[%clk 0:02:22]}  b5 {[%clk 0:02:47]} 9. cxb5 {[%clk 0:02:06]}  a6 {[%clk 0:02:48]} 10. bxa6 {[%clk 0:01:55]}  Qa5 {[%clk 0:02:47]} 11. Qc2 {[%clk 0:01:48]}  Rb8 {[%clk 0:02:46]} 12. Rc1 {[%clk 0:01:28]}  Nxe4 {[%clk 0:01:46]} 13. Qxe4 {[%clk 0:01:22]}  Rxb2 {[%clk 0:01:46]} 14. Qd3 {[%clk 0:01:09]}  c4 {[%clk 0:01:23]} 15. Qf3 {[%clk 0:00:55]}  Nc5 {[%clk 0:01:07]} 16. Kf1 {[%clk 0:00:40]}  Nd3 {[%clk 0:00:53]} 17. Bxd3 {[%clk 0:00:26]}  cxd3 {[%clk 0:00:54]} 18. Nd1 {[%clk 0:00:26]}  Bxa6 {[%clk 0:00:43]} 0-1


[Site "https://www.chess.com"]

[Event "Titled Tuesday Blitz February 28 Late 2023"]
[White "Torres Dominguez, David"]
[Black "Backsten, Jan"]
[WhiteFideId "2220857"]
[BlackFideId "1735381"]
[WhiteElo "1999"]
[BlackElo "1967"]
[Result "0-1"]
[Round "02"]
[TimeControl "180+2"]
[Date "2023.02.28"]
[WhiteClock "0:00:02"]
[BlackClock "0:00:21"]

1. e4 {[%clk 0:03:00]}  e6 {[%clk 0:02:59]} 2. d4 {[%clk 0:03:00]}  d5 {[%clk 0:03:00]} 3. exd5 {[%clk 0:02:59]}  exd5 {[%clk 0:03:01]} 4. Bd3 {[%clk 0:02:59]}  Bd6 {[%clk 0:02:57]} 5. Qf3 {[%clk 0:02:58]}  Nc6 {[%clk 0:02:51]} 6. c3 {[%clk 0:02:57]}  Be6 {[%clk 0:02:49]} 7. Bf4 {[%clk 0:02:56]}  Nge7 {[%clk 0:02:47]} 8. Ne2 {[%clk 0:02:49]}  Qd7 {[%clk 0:02:41]} 9. Bxd6 {[%clk 0:02:47]}  Qxd6 {[%clk 0:02:42]} 10. Qg3 {[%clk 0:02:46]}  O-O-O {[%clk 0:02:30]} 11. Qxd6 {[%clk 0:02:43]}  Rxd6 {[%clk 0:02:31]} 12. Ng3 {[%clk 0:02:35]}  f5 {[%clk 0:02:02]} 13. f4 {[%clk 0:02:25]}  g6 {[%clk 0:01:56]} 14. h4 {[%clk 0:02:19]}  Rg8 {[%clk 0:01:40]} 15. Na3 {[%clk 0:02:09]}  a6 {[%clk 0:01:34]} 16. Nc2 {[%clk 0:02:03]}  Nb8 {[%clk 0:01:28]} 17. O-O-O {[%clk 0:02:00]}  Nd7 {[%clk 0:01:27]} 18. Rde1 {[%clk 0:01:59]}  Nf6 {[%clk 0:01:26]} 19. Re5 {[%clk 0:01:54]}  Nc6 {[%clk 0:01:22]} 20. Re2 {[%clk 0:01:42]}  Ne4 {[%clk 0:01:22]} 21. Bxe4 {[%clk 0:01:37]}  dxe4 {[%clk 0:01:22]} 22. Nf1 {[%clk 0:01:34]}  Bxa2 {[%clk 0:01:17]} 23. Nfe3 {[%clk 0:01:33]}  Na5 {[%clk 0:01:11]} 24. b4 {[%clk 0:01:28]}  Nc4 {[%clk 0:01:00]} 25. g4 {[%clk 0:01:28]}  Nxe3 {[%clk 0:00:58]} 26. Nxe3 {[%clk 0:01:28]}  Be6 {[%clk 0:00:59]} 27. g5 {[%clk 0:01:09]}  h5 {[%clk 0:00:51]} 28. gxh6 {[%clk 0:01:06]}  Rh8 {[%clk 0:00:51]} 29. h5 {[%clk 0:01:02]}  Rxh6 {[%clk 0:00:50]} 30. Reh2 {[%clk 0:01:01]}  Rxh5 {[%clk 0:00:46]} 31. Rxh5 {[%clk 0:01:00]}  gxh5 {[%clk 0:00:46]} 32. Rxh5 {[%clk 0:01:00]}  Kd7 {[%clk 0:00:39]} 33. Nxf5 {[%clk 0:00:54]}  Bxf5 {[%clk 0:00:35]} 34. Rxf5 {[%clk 0:00:54]}  Rh6 {[%clk 0:00:30]} 35. Rd5+ {[%clk 0:00:54]}  Kc6 {[%clk 0:00:29]} 36. Rc5+ {[%clk 0:00:47]}  Kd6 {[%clk 0:00:29]} 37. Re5 {[%clk 0:00:44]}  Rh1+ {[%clk 0:00:29]} 38. Kd2 {[%clk 0:00:41]}  Rh2+ {[%clk 0:00:30]} 39. Ke3 {[%clk 0:00:36]}  Rh3+ {[%clk 0:00:30]} 40. Kd2 {[%clk 0:00:36]}  Rd3+ {[%clk 0:00:24]} 41. Kc2 {[%clk 0:00:35]}  Re3 {[%clk 0:00:24]} 42. Kd2 {[%clk 0:00:30]}  Rd3+ {[%clk 0:00:24]} 43. Kc2 {[%clk 0:00:29]}  Rf3 {[%clk 0:00:25]} 44. Rxe4 {[%clk 0:00:28]}  b6 {[%clk 0:00:25]} 45. c4 {[%clk 0:00:24]}  Rf2+ {[%clk 0:00:22]} 46. Kd3 {[%clk 0:00:23]}  Rf3+ {[%clk 0:00:23]} 47. Kc2 {[%clk 0:00:19]}  Rf1 {[%clk 0:00:23]} 48. Kc3 {[%clk 0:00:15]}  b5 {[%clk 0:00:22]} 49. cxb5 {[%clk 0:00:14]}  axb5 {[%clk 0:00:23]} 50. Re5 {[%clk 0:00:13]}  c6 {[%clk 0:00:23]} 51. f5 {[%clk 0:00:13]}  Rf3+ {[%clk 0:00:24]} 52. Kd2 {[%clk 0:00:12]}  Rb3 {[%clk 0:00:24]} 53. f6 {[%clk 0:00:10]}  Rf3 {[%clk 0:00:24]} 54. Ke2 {[%clk 0:00:02]}  Rxf6 {[%clk 0:00:25]} 55. Re4 {[%clk 0:00:02]}  Rh6 {[%clk 0:00:24]} 56. Kd3 {[%clk 0:00:01]}  Rh3+ {[%clk 0:00:25]} 57. Re3 {[%clk 0:00:02]}  Rh1 {[%clk 0:00:21]} 58. Re5 {[%clk 0:00:02]}  Rb1 {[%clk 0:00:21]} 59. Kc3 {[%clk 0:00:02]}  Rc1+ {[%clk 0:00:20]} 60. Kd3 {[%clk 0:00:02]}  Rc4 {[%clk 0:00:21]} 0-1


[Site "https://www.chess.com"]

[Event "Titled Tuesday Blitz February 28 Late 2023"]
[White "Dzierzak, Radoslaw"]
[Black "Manu_ChessExcelsior"]
[WhiteFideId "1161407"]
[WhiteElo "2166"]
[BlackElo "1967"]
[Result "1-0"]
[Round "02"]
[TimeControl "180+2"]
[Date "2023.02.28"]
[WhiteClock "0:00:12"]
[BlackClock "0:00:01"]

1. e4 {[%clk 0:03:00]}  e5 {[%clk 0:02:56]} 2. Nf3 {[%clk 0:03:01]}  Nc6 {[%clk 0:02:55]} 3. Bc4 {[%clk 0:03:00]}  Nf6 {[%clk 0:02:55]} 4. d3 {[%clk 0:02:59]}  Bc5 {[%clk 0:02:54]} 5. O-O {[%clk 0:02:59]}  a6 {[%clk 0:02:55]} 6. c3 {[%clk 0:02:57]}  Ba7 {[%clk 0:02:55]} 7. Bb3 {[%clk 0:02:57]}  d6 {[%clk 0:02:55]} 8. Nbd2 {[%clk 0:02:55]}  O-O {[%clk 0:02:49]} 9. h3 {[%clk 0:02:52]}  h6 {[%clk 0:02:43]} 10. Re1 {[%clk 0:02:51]}  Re8 {[%clk 0:02:42]} 11. Nf1 {[%clk 0:02:51]}  Be6 {[%clk 0:02:42]} 12. Bc2 {[%clk 0:02:48]}  Ne7 {[%clk 0:02:37]} 13. Ng3 {[%clk 0:02:44]}  Ng6 {[%clk 0:02:36]} 14. d4 {[%clk 0:02:43]}  exd4 {[%clk 0:02:34]} 15. cxd4 {[%clk 0:02:43]}  c6 {[%clk 0:02:15]} 16. Bd2 {[%clk 0:02:25]}  Nh7 {[%clk 0:01:50]} 17. Bc3 {[%clk 0:01:55]}  Ng5 {[%clk 0:01:49]} 18. Nxg5 {[%clk 0:01:41]}  Qxg5 {[%clk 0:01:47]} 19. Qh5 {[%clk 0:01:37]}  Nf4 {[%clk 0:01:35]} 20. Qxg5 {[%clk 0:01:34]}  hxg5 {[%clk 0:01:36]} 21. Ne2 {[%clk 0:01:26]}  Nxe2+ {[%clk 0:01:21]} 22. Rxe2 {[%clk 0:01:26]}  Bc4 {[%clk 0:01:21]} 23. Ree1 {[%clk 0:01:15]}  Re7 {[%clk 0:01:09]} 24. b3 {[%clk 0:01:13]}  Be6 {[%clk 0:01:06]} 25. Rad1 {[%clk 0:01:12]}  Rae8 {[%clk 0:01:00]} 26. Bb4 {[%clk 0:01:08]}  c5 {[%clk 0:01:00]} 27. dxc5 {[%clk 0:01:00]}  dxc5 {[%clk 0:01:00]} 28. Ba3 {[%clk 0:00:58]}  b5 {[%clk 0:00:59]} 29. Rd6 {[%clk 0:00:57]}  Bc8 {[%clk 0:00:53]} 30. Red1 {[%clk 0:00:53]}  Re6 {[%clk 0:00:44]} 31. Rxe6 {[%clk 0:00:49]}  Bxe6 {[%clk 0:00:45]} 32. Rd6 {[%clk 0:00:49]}  Bc8 {[%clk 0:00:45]} 33. Kf1 {[%clk 0:00:41]}  f6 {[%clk 0:00:25]} 34. f3 {[%clk 0:00:38]}  Kf7 {[%clk 0:00:26]} 35. Bb2 {[%clk 0:00:35]}  Ke7 {[%clk 0:00:25]} 36. e5 {[%clk 0:00:34]}  Rd8 {[%clk 0:00:20]} 37. Rxd8 {[%clk 0:00:27]}  Kxd8 {[%clk 0:00:19]} 38. exf6 {[%clk 0:00:28]}  gxf6 {[%clk 0:00:17]} 39. Bxf6+ {[%clk 0:00:29]}  Kc7 {[%clk 0:00:16]} 40. Bxg5 {[%clk 0:00:29]}  c4 {[%clk 0:00:16]} 41. Bf4+ {[%clk 0:00:28]}  Kd8 {[%clk 0:00:14]} 42. h4 {[%clk 0:00:26]}  cxb3 {[%clk 0:00:09]} 43. Bxb3 {[%clk 0:00:26]}  a5 {[%clk 0:00:09]} 44. h5 {[%clk 0:00:24]}  a4 {[%clk 0:00:06]} 45. Bc2 {[%clk 0:00:23]}  Be6 {[%clk 0:00:06]} 46. Bb1 {[%clk 0:00:21]}  b4 {[%clk 0:00:05]} 47. h6 {[%clk 0:00:20]}  Bd4 {[%clk 0:00:06]} 48. Bd2 {[%clk 0:00:19]}  b3 {[%clk 0:00:04]} 49. axb3 {[%clk 0:00:19]}  axb3 {[%clk 0:00:05]} 50. Ke2 {[%clk 0:00:19]}  b2 {[%clk 0:00:03]} 51. Be3 {[%clk 0:00:17]}  Be5 {[%clk 0:00:03]} 52. f4 {[%clk 0:00:15]}  Bc3 {[%clk 0:00:02]} 53. f5 {[%clk 0:00:14]}  Bc4+ {[%clk 0:00:01]} 54. Kd1 {[%clk 0:00:13]}  Ke7 {[%clk 0:00:01]} 55. Bg5+ {[%clk 0:00:12]} 1-0


[Site "https://www.chess.com"]

[Event "Titled Tuesday Blitz February 28 Late 2023"]
[White "Gomes, Luiz Alexandre de Souza"]
[Black "Desideri, Ricardo Maruchi"]
[WhiteFideId "2102790"]
[BlackFideId "2110440"]
[WhiteElo "2423"]
[BlackElo "1945"]
[Result "0-1"]
[Round "02"]
[TimeControl "180+2"]
[Date "2023.02.28"]
[WhiteClock "0:00:11"]
[BlackClock "0:00:50"]

1. e4 {[%clk 0:03:00]}  c5 {[%clk 0:02:56]} 2. Nf3 {[%clk 0:03:00]}  d6 {[%clk 0:02:55]} 3. d4 {[%clk 0:03:00]}  cxd4 {[%clk 0:02:56]} 4. Nxd4 {[%clk 0:03:01]}  Nf6 {[%clk 0:02:55]} 5. Nc3 {[%clk 0:03:01]}  a6 {[%clk 0:02:55]} 6. Rg1 {[%clk 0:03:01]}  e6 {[%clk 0:02:53]} 7. g4 {[%clk 0:03:01]}  b5 {[%clk 0:02:51]} 8. g5 {[%clk 0:03:01]}  Nfd7 {[%clk 0:02:50]} 9. Be3 {[%clk 0:03:01]}  Bb7 {[%clk 0:02:50]} 10. a3 {[%clk 0:03:01]}  Nb6 {[%clk 0:02:49]} 11. Qd2 {[%clk 0:02:59]}  N8d7 {[%clk 0:02:49]} 12. f4 {[%clk 0:02:58]}  Be7 {[%clk 0:02:49]} 13. h4 {[%clk 0:02:55]}  Rc8 {[%clk 0:02:44]} 14. O-O-O {[%clk 0:02:54]}  Nc5 {[%clk 0:02:19]} 15. Bd3 {[%clk 0:02:29]}  Nba4 {[%clk 0:02:11]} 16. Nxa4 {[%clk 0:02:27]}  bxa4 {[%clk 0:02:05]} 17. h5 {[%clk 0:02:01]}  e5 {[%clk 0:02:03]} 18. Nf5 {[%clk 0:02:00]}  Nb3+ {[%clk 0:02:02]} 19. Kb1 {[%clk 0:01:57]}  Nxd2+ {[%clk 0:02:02]} 20. Rxd2 {[%clk 0:01:57]}  O-O {[%clk 0:01:50]} 21. fxe5 {[%clk 0:01:47]}  dxe5 {[%clk 0:01:47]} 22. g6 {[%clk 0:01:44]}  fxg6 {[%clk 0:01:23]} 23. hxg6 {[%clk 0:01:44]}  h6 {[%clk 0:01:20]} 24. Bxh6 {[%clk 0:00:24]}  gxh6 {[%clk 0:01:10]} 25. g7 {[%clk 0:00:22]}  Rxf5 {[%clk 0:01:06]} 26. exf5 {[%clk 0:00:23]}  Qc7 {[%clk 0:00:56]} 27. Rg6 {[%clk 0:00:19]}  Bg5 {[%clk 0:00:55]} 28. Re2 {[%clk 0:00:16]}  e4 {[%clk 0:00:54]} 29. Bxa6 {[%clk 0:00:10]}  Bxa6 {[%clk 0:00:51]} 30. Rxa6 {[%clk 0:00:11]}  Qc4 {[%clk 0:00:50]} 0-1


[Site "https://www.chess.com"]

[Event "Titled Tuesday Blitz February 28 Late 2023"]
[White "Wartiovaara, Oliver"]
[Black "tandercat"]
[WhiteFideId "513024"]
[WhiteElo "2214"]
[BlackElo "1877"]
[Result "1-0"]
[Round "02"]
[TimeControl "180+2"]
[Date "2023.02.28"]
[WhiteClock "0:01:13"]
[BlackClock "0:00:11"]

1. d4 {[%clk 0:03:00]}  d5 {[%clk 0:02:59]} 2. c4 {[%clk 0:03:00]}  e6 {[%clk 0:02:59]} 3. Nc3 {[%clk 0:03:00]}  a6 {[%clk 0:02:59]} 4. cxd5 {[%clk 0:02:57]}  exd5 {[%clk 0:03:00]} 5. Nf3 {[%clk 0:02:48]}  Nf6 {[%clk 0:02:59]} 6. Bg5 {[%clk 0:02:48]}  Be6 {[%clk 0:02:58]} 7. e3 {[%clk 0:02:45]}  Nbd7 {[%clk 0:02:56]} 8. Bd3 {[%clk 0:02:45]}  Bd6 {[%clk 0:02:42]} 9. O-O {[%clk 0:02:44]}  c6 {[%clk 0:02:42]} 10. Rb1 {[%clk 0:02:37]}  Qc7 {[%clk 0:02:39]} 11. Bh4 {[%clk 0:02:30]}  O-O {[%clk 0:02:36]} 12. b4 {[%clk 0:02:24]}  Rfe8 {[%clk 0:02:15]} 13. a4 {[%clk 0:02:21]}  h6 {[%clk 0:01:56]} 14. Bg3 {[%clk 0:02:13]}  Bg4 {[%clk 0:01:38]} 15. Bxd6 {[%clk 0:02:09]}  Qxd6 {[%clk 0:01:37]} 16. h3 {[%clk 0:02:09]}  Be6 {[%clk 0:01:18]} 17. b5 {[%clk 0:01:57]}  cxb5 {[%clk 0:01:16]} 18. axb5 {[%clk 0:01:58]}  a5 {[%clk 0:01:14]} 19. b6 {[%clk 0:01:44]}  Nxb6 {[%clk 0:01:10]} 20. Qb3 {[%clk 0:01:43]}  Nc4 {[%clk 0:00:58]} 21. Nb5 {[%clk 0:01:19]}  Qb6 {[%clk 0:00:20]} 22. Qa4 {[%clk 0:01:18]}  Qc6 {[%clk 0:00:17]} 23. Rfc1 {[%clk 0:01:15]}  b6 {[%clk 0:00:11]} 24. Ne5 {[%clk 0:01:13]} 1-0


[Site "https://www.chess.com"]